[Event "LTU-chT 2019"]
[Site "Lithuania"]
[Date "2019.03.30"]
[Round "3.8"]
[White "Dubovikas, Tomas"]
[Black "Bagvilas, Lukas"]
[Result "1/2-1/2"]
[ECO "A03"]
[WhiteElo "2171"]
[BlackElo "1973"]
[Annotator "NA"]
[PlyCount "112"]
[EventDate "2019.01.26"]
[EventType "team-tourn"]
[EventCountry "LTU"]
[SourceTitle "playchess.com"]
[Source "ChessBase"]
[SourceQuality "1"]
[TimeControl "40/5400+30:1800+30"]

1. f4 {[%emt 0:00:00]} d5 {[%emt 0:00:59]} 2. Nf3 {[%emt 0:00:00]} Nc6 {[%emt 0:00:54]} 3. e3 {[%emt 0:00:00]} Bg4 {[%emt 0:01:39]} 4. Bb5 {[%emt 0:00:17]} Qd6 {[%emt 0:02:28]} 5. h3 {[%emt 0:05:08]} (5. b3 Nh6 6. Bb2 f6 7. O-O O-O-O 8. c4 Nf5 9. Nc3 dxc4 10. bxc4 Bxf3 11. Qxf3 Qxd2 12. Bxc6 bxc6 13. Qxc6 {1-0 (20) Williams,S (2455)-Ledger,D (2262) England 2014}) 5... Bxf3 {[%emt 0:00:02]} 6. Qxf3 {[%emt 0:00:08] A03: Bird's Opening with 1...d5} O-O-O {[%emt 0:00:04]} 7. d4 {[%emt 0:08:48]} Nf6 {[%emt 0:00:22]} 8. a3 $146 {[%emt 0:06:50]} ({Predecessor:} 8. c3 Ne4 9. Nd2 Nxd2 10. Bxd2 f5 11. Bd3 e6 12. g4 g6 {½-½ (25) Stockman,X (1810)-Van Herck,M (2109) Brasschaat 2010}) 8... Rg8 {[%emt 0:00:56]} 9. Nc3 {[%emt 0:19:10]} g5 {[%emt 0:03:43]} 10. g3 {[%emt 0:07:52]} gxf4 {[%emt 0:04:16]} 11. gxf4 {[%emt 0:00:07]} a6 {[%emt 0:01:18]} 12. Bd3 {[%emt 0:00:45]} Na7 {[%emt 0:07:35]} 13. b4 {[%emt 0:04:59]} e6 {[%emt 0:02:01]} 14. Bd2 {[%emt 0:04:45]} Be7 {[%emt 0:00:10]} 15. Rb1 {[%emt 0:01:56]} Rg7 {[%emt 0:00:19]} 16. Kf2 {[%emt 0:14:05]} Rdg8 {[%emt 0:05:23]} 17. Rbg1 {[%emt 0:00:01]} a5 {[%emt 0:06:41]} 18. Rxg7 {[%emt 0:04:46]} Rxg7 {[%emt 0:00:01]} 19. Rb1 {[%emt 0:04:29]} axb4 {[%emt 0:00:12]} 20. axb4 {[%emt 0:00:04]} Nc6 {[%emt 0:02:20]} 21. Ne2 {[%emt 0:02:26]} Bd8 {[%emt 0:04:42]} 22. b5 Ne7 {[%emt 0:00:11]} 23. Bb4 {[%emt 0:02:39]} Qd7 {[%emt 0:00:34]} 24. Ra1 {[%emt 0:01:48]} Kb8 {[%emt 0:00:02]} 25. Bxe7 {[%emt 0:01:13]} Qxe7 {[%emt 0:00:58]} 26. Rg1 {[%emt 0:02:04]} Rxg1 {[%emt 0:00:08]} 27. Nxg1 {[%emt 0:02:32]} Qb4 {[%emt 0:00:35]} 28. Ke2 {[%emt 0:03:27]} Ka7 {[%emt 0:03:31]} 29. Qg2 {[%emt 0:00:13]} Qb1 {[%emt 0:01:50]} 30. Qf1 {[%emt 0:01:28]} Qb2 {[%emt 0:00:37]} 31. Qf3 {[%emt 0:01:35]} Be7 {[%emt 0:00:09]} 32. f5 $15 {[%emt 0:00:23]} (32. Qg2 $11) 32... e5 {[%emt 0:04:52]} 33. dxe5 {[%emt 0:00:02]} Qxe5 {[%emt 0:00:13]} 34. Qf4 {[%emt 0:00:14]} Qxf4 {[%emt 0:00:07]} 35. exf4 {[%emt 0:00:00]} Bc5 {[%emt 0:01:38]} 36. Nf3 {[%emt 0:00:34]} Nh5 {[%emt 0:00:01]} 37. Ng5 {[%emt 0:00:14]} Nxf4+ {[%emt 0:04:24]} 38. Kf3 {[%emt 0:00:00]} Nxd3 {[%emt 0:00:02]} 39. cxd3 {[%emt 0:00:01]} f6 {[%emt 0:00:14]} 40. Nxh7 {[%emt 0:00:33]} Be7 {[%emt 0:00:07]} 41. Kg4 {[%emt 0:30:16]} Kb6 {[%emt 0:33:27]} 42. Kh5 {[%emt 0:00:45]} Kxb5 {[%emt 0:00:07]} 43. Kg6 {[%emt 0:00:04]} c5 {[%emt 0:01:29]} 44. Nxf6 {[%emt 0:00:00]} Bxf6 {[%emt 0:00:00]} 45. Kxf6 {[%emt 0:00:00]} c4 {[%emt 0:00:00]} 46. dxc4+ {[%emt 0:00:00]} dxc4 {[%emt 0:00:00]} 47. Kg6 {[%emt 0:00:00]} c3 {[%emt 0:00:00]} 48. f6 {[%emt 0:00:00]} c2 {[%emt 0:00:00]} 49. f7 {[%emt 0:00:00]} c1=Q {[%emt 0:00:00]} 50. f8=Q {[%emt 0:00:00]} Qg1+ {[%emt 0:00:00]} 51. Kh5 {[%emt 0:00:00]} Qg2 {[%emt 0:00:00]} 52. h4 {[%emt 0:00:00]} Qe2+ {[%emt 0:00:00]} 53. Kg5 {[%emt 0:00:00]} Qg2+ {[%emt 0:00:00]} 54. Kh6 {[%emt 0:00:00]} Qd2+ {[%emt 0:00:00]} 55. Kg6 {[%emt 0:00:00]} Qg2+ {[%emt 0:00:00]} 56. Kh6 {[%emt 0:00:00]} Qd2+ {[%emt 0:00:00]} 1/2-1/2

[Event "LTU-chT 2019"]
[Site "Lithuania"]
[Date "2019.03.30"]
[Round "3.9"]
[White "Sarauskas, Andrius"]
[Black "Muningis, Paulius"]
[Result "0-1"]
[ECO "A04"]
[WhiteElo "1703"]
[BlackElo "2146"]
[Annotator "NA"]
[PlyCount "98"]
[EventDate "2019.01.26"]
[EventType "team-tourn"]
[EventCountry "LTU"]
[SourceTitle "playchess.com"]
[Source "ChessBase"]
[SourceQuality "1"]
[TimeControl "40/5400+30:1800+30"]

1. Nf3 {[%emt 0:00:00]} g6 {[%emt 0:01:04]} 2. g3 {[%emt 0:00:00]} Bg7 {[%emt 0:00:08]} 3. Bg2 {[%emt 0:00:00]} e5 {[%emt 0:02:30]} 4. O-O {[%emt 0:03:08]} d5 {[%emt 0:05:32]} 5. d3 {[%emt 0:07:12]} Nc6 {[%emt 0:01:43]} 6. Nbd2 {[%emt 0:14:55]} Nf6 {[%emt 0:09:41]} 7. e4 {[%emt 0:03:44]} O-O {[%emt 0:01:12]} 8. Re1 {[%emt 0:02:32]} Re8 {[%emt 0:08:28]} 9. c3 {[%emt 0:01:21]} h6 {[%emt 0:01:42]} 10. Qc2 {[%emt 0:04:37]} Be6 {[%emt 0:07:07]} 11. exd5 {[%emt 0:03:13]} Nxd5 {[%emt 0:02:59]} 12. Nc4 {[%emt 0:09:04]} Bf5 {[%emt 0:04:17]} 13. Nh4 {[%emt 0:07:01]} Be6 {[%emt 0:01:43]} 14. Nf3 {[%emt 0:00:12]} Bf5 {[%emt 0:09:59]} 15. Nh4 $11 {[%emt 0:01:44]} Bg4 {[%emt 0:11:26]} 16. h3 {[%emt 0:06:41]} Be6 {[%emt 0:01:40]} 17. Nf3 {[%emt 0:00:22]} Bf5 {[%emt 0:03:16]} 18. Nh4 {[%emt 0:03:13]} Be6 {[%emt 0:07:31]} 19. Nf3 {[%emt 0:01:21]} Bf5 {[%emt 0:00:15]} 20. Nh4 {[%emt 0:03:57]} Be6 {[%emt 0:00:02]} 21. Ne3 {[%emt 0:06:11]} Qd7 {[%emt 0:00:41]} 22. Nxd5 {[%emt 0:06:41]} Bxd5 {[%emt 0:00:02]} 23. Be3 {[%emt 0:00:35]} Rad8 {[%emt 0:00:53]} 24. Rad1 {[%emt 0:00:50]} Bxg2 {[%emt 0:00:07]} 25. Kxg2 {[%emt 0:05:01]} Qd5+ {[%emt 0:00:02]} 26. Kh2 {[%emt 0:01:39]} Qxa2 {[%emt 0:00:31]} 27. Qe2 {[%emt 0:01:31]} Qd5 {[%emt 0:00:28]} 28. Qg4 {[%emt 0:01:00]} Qe6 {[%emt 0:00:41]} 29. Qa4 {[%emt 0:00:52]} Qd5 {[%emt 0:01:16]} 30. Qg4 {[%emt 0:00:14]} Qb3 {[%emt 0:01:38]} 31. Bc1 {[%emt 0:01:42]} Qd5 {[%emt 0:01:00]} 32. Ng2 {[%emt 0:00:34]} Qb5 {[%emt 0:01:13]} 33. Ne3 {[%emt 0:03:31]} Rxd3 {[%emt 0:01:13]} 34. Rxd3 {[%emt 0:01:28]} Qxd3 {[%emt 0:00:02]} 35. Rd1 {[%emt 0:00:08]} Qb5 {[%emt 0:00:43]} 36. Rd7 {[%emt 0:01:05]} Re7 {[%emt 0:03:36]} 37. Rd5 {[%emt 0:00:28]} Qb3 {[%emt 0:00:48]} 38. Qc8+ {[%emt 0:00:39]} Kh7 {[%emt 0:00:26]} 39. h4 {[%emt 0:00:20]} h5 {[%emt 0:01:56]} 40. Rd7 {[%emt 0:00:26]} Qe6 {[%emt 0:00:16]} 41. Rxc7 {[%emt 0:01:41]} Qxc8 {[%emt 0:01:17]} 42. Rxc8 {[%emt 0:00:01]} Rd7 {[%emt 0:00:49]} 43. Nc4 {[%emt 0:05:13]} Ne7 {[%emt 0:05:51]} 44. Rc5 {[%emt 0:00:48]} f6 {[%emt 0:04:52]} 45. Nd2 {[%emt 0:08:12]} b6 {[%emt 0:01:20]} 46. Rc4 {[%emt 0:01:16]} Kg8 {[%emt 0:02:39]} 47. Ne4 {[%emt 0:02:07]} Kf7 {[%emt 0:00:28]} 48. b3 {[%emt 0:01:25]} Bf8 {[%emt 0:03:28]} 49. Ba3 {[%emt 0:02:40]} b5 {[%emt 0:00:49]} 0-1

[Event "LTU-chT 2019"]
[Site "Lithuania"]
[Date "2019.03.30"]
[Round "3.10"]
[White "Adomaitis, Edgaras"]
[Black "Setikiene, Grazina"]
[Result "1-0"]
[ECO "D43"]
[WhiteElo "1889"]
[BlackElo "1862"]
[Annotator "NA"]
[PlyCount "67"]
[EventDate "2019.01.26"]
[EventType "team-tourn"]
[EventCountry "LTU"]
[SourceTitle "playchess.com"]
[Source "ChessBase"]
[SourceQuality "1"]
[TimeControl "40/5400+30:1800+30"]

{[%evp 17,54,21,32767,32767,-63,-46,-14,-109,32767,32767,0,-69,31,59,71,1,117,32767,32767,48,62,32767,32767,100,133,94,168,183,32767,32767,278,32767,344,32767,181,220,212,124,146]} 1. d4 {[%emt 0:00:00]} d5 {[%emt 0:00:00]} 2. c4 {[%emt 0:00:00]} c6 {[%emt 0:00:11]} 3. Nc3 {[%emt 0:00:00]} Nf6 {[%emt 0:00:09]} 4. Nf3 {[%emt 0:00:15]} e6 {[%emt 0:00:44]} 5. g3 {[%emt 0:02:53]} Bb4 {[%emt 0:01:44]} 6. Bg2 {[%emt 0:00:27] E01: Catalan: Early deviations} dxc4 {[%emt 0:04:56]} 7. Ne5 {[%emt 0:03:31]} O-O {[%emt 0:02:46]} (7... Nd5 8. Bd2 Nb6 9. Ne4 Bxd2+ 10. Qxd2 O-O 11. Rc1 N8d7 12. Nd6 Qe7 13. Ndxc4 Nxc4 14. Nxc4 e5 {1-0 (30) Bindrich,F (2604)-Lenic,L (2650) Austria 2017}) 8. O-O {[%emt 0:01:05]} Nd5 {[%emt 0:01:40]} 9. Ne4 {[%emt 0:07:37]} ({Don't play} 9. Nxc4 Bxc3 10. bxc3 Nxc3 $15) 9... b5 {[%emt 0:03:56]} 10. Qc2 {[%emt 0:02:57]} f6 {[%emt 0:02:18]} 11. Nf3 {[%emt 0:01:26]} Bb7 $146 {[%emt 0:01:37]} ({Predecessor:} 11... Nd7 12. a4 Be7 13. Bd2 Bb7 14. b3 cxb3 15. Qxb3 b4 {1-0 (60) Leonardi,C (2031)-Papadakis,M (2266) Nova Gorica 2016}) 12. Neg5 {[%emt 0:05:12]} (12. b3 $11) 12... fxg5 {[%emt 0:05:07]} 13. Nxg5 {[%emt 0:00:01]} g6 {[%emt 0:06:49]} ({Better is} 13... Rf5 $17 14. Nxe6 Qf6) 14. Nxe6 {[%emt 0:00:06]} (14. a3 $1 $11) 14... Qe7 {[%emt 0:02:22]} ({Black should try} 14... Qd7 $17 15. Nxf8 Bxf8) 15. Nxf8 {[%emt 0:00:25]} Qxf8 {[%emt 0:00:47]} 16. e4 {[%emt 0:00:21]} Ne7 {[%emt 0:01:23]} (16... Nb6 $11 {keeps the balance.}) 17. b3 {[%emt 0:00:40]} Qf7 {[%emt 0:01:25]} 18. f4 $2 {[%emt 0:03:02]} (18. bxc4 $18 a6 19. Rb1) 18... Na6 {[%emt 0:05:40]} 19. Bb2 {[%emt 0:01:42]} Ba5 {[%emt 0:02:41]} 20. bxc4 {[%emt 0:05:46]} bxc4 {[%emt 0:00:59]} 21. Rfc1 {[%emt 0:01:16]} Bb6 {[%emt 0:04:46] [#]} (21... Nc7 $16) 22. Bf1 $1 {[%emt 0:02:16]} ({Much less strong is} 22. Qxc4 $6 Qxc4 23. Rxc4 Nc7 $14) 22... Kf8 {[%emt 0:02:08]} 23. Bxc4 {[%emt 0:01:09]} Qf6 {[%emt 0:01:13]} 24. Rd1 {[%emt 0:00:31]} Qd6 {[%emt 0:00:51]} 25. a4 {[%emt 0:01:28]} Nb4 {[%emt 0:02:11]} 26. Qc3 {[%emt 0:00:45]} a5 {[%emt 0:01:41]} 27. Bb3 {[%emt 0:00:19]} (27. Rd2 $18) 27... Qf6 $16 {[%emt 0:01:51]} 28. Kg2 {[%emt 0:06:54]} Rd8 {[%emt 0:06:08]} 29. g4 {[%emt 0:01:15]} Ke8 {[%emt 0:05:33]} 30. Kg3 {[%emt 0:03:00]} g5 {[%emt 0:04:45]} 31. f5 {[%emt 0:00:37]} Qh6 {[%emt 0:02:24]} 32. h3 {[%emt 0:01:02]} Bc7+ {[%emt 0:05:29]} 33. Kg2 {[%emt 0:00:14]} Ng8 {[%emt 0:06:11]} 34. Bxg8 {[%emt 0:00:29]} 1-0

[Event "LTU-chT 2019"]
[Site "Lithuania"]
[Date "2019.03.30"]
[Round "3.12"]
[White "Tvarijonas, Tomas"]
[Black "Juknis, Paulius"]
[Result "1/2-1/2"]
[ECO "C11"]
[WhiteElo "2248"]
[BlackElo "2219"]
[Annotator "NA"]
[PlyCount "42"]
[EventDate "2019.01.26"]
[EventType "team-tourn"]
[EventCountry "LTU"]
[SourceTitle "playchess.com"]
[Source "ChessBase"]
[SourceQuality "1"]
[TimeControl "40/5400+30:1800+30"]

{[%evp 14,42,11,10,17,18,32767,32767,32767,32767,32767,32767,32767,-24,-38,-25,-25,-14,-20,32767,32767,-12,-13,-17,-22,-20,-20,-10,0,0,25]} 1. e4 {[%emt 0:00:00]} e6 {[%emt 0:00:00]} 2. d4 {[%emt 0:00:00]} d5 {[%emt 0:00:00]} 3. Nc3 {[%emt 0:00:00]} Nf6 {[%emt 0:00:22]} 4. e5 {[%emt 0:00:08]} Nfd7 {[%emt 0:00:09]} 5. f4 {[%emt 0:00:17]} c5 {[%emt 0:00:17]} 6. Nf3 {[%emt 0:00:05]} Nc6 {[%emt 0:00:10]} 7. Be3 {[%emt 0:00:12]} cxd4 {[%emt 0:00:22]} 8. Nxd4 {[%emt 0:00:14]} Bc5 {[%emt 0:00:11]} 9. Qd2 {[%emt 0:00:40]} O-O {[%emt 0:00:12]} 10. O-O-O {[%emt 0:01:11]} a6 {[%emt 0:00:50]} 11. h4 {[%emt 0:10:27]} Nxd4 {[%emt 0:00:33]} 12. Bxd4 {[%emt 0:00:06]} b5 {[%emt 0:00:17]} 13. h5 {[%emt 0:14:46]} b4 {[%emt 0:00:38]} 14. Na4 {[%emt 0:02:22]} Bxd4 {[%emt 0:00:16]} 15. Qxd4 {[%emt 0:00:06]} Qa5 {[%emt 0:00:09]} 16. b3 {[%emt 0:00:37]} Bb7 {[%emt 0:00:10]} 17. h6 {[%emt 0:06:29]} g6 $1 {[%emt 0:00:46]} 18. Kb1 {[%emt 0:05:01]} Bc6 {[%emt 0:00:28]} 19. Nb2 {[%emt 0:02:54]} Qc5 {[%emt 0:02:14]} 20. Rh3 {[%emt 0:15:01]} a5 {[%emt 0:06:03]} 21. c3 {[%emt 0:03:36]} Rfc8 $11 {[%emt 0:15:04]} 1/2-1/2

[Event "LTU-chT 2019"]
[Site "Lithuania"]
[Date "2019.03.30"]
[Round "3.13"]
[White "Kaunas, Kestutis"]
[Black "Steponavicius, Stasys"]
[Result "0-1"]
[ECO "E12"]
[WhiteElo "2156"]
[BlackElo "2194"]
[Annotator "NA"]
[PlyCount "65"]
[EventDate "2019.01.26"]
[EventType "team-tourn"]
[EventCountry "LTU"]
[SourceTitle "playchess.com"]
[Source "ChessBase"]
[SourceQuality "1"]
[TimeControl "40/5400+30:1800+30"]

1. d4 {[%emt 0:00:00]} Nf6 {[%emt 0:00:00]} 2. c4 {[%emt 0:00:00]} e6 {[%emt 0:00:00]} 3. Nf3 {[%emt 0:00:00]} b6 {[%emt 0:00:01]} 4. a3 {[%emt 0:00:00]} Ba6 {[%emt 0:00:57]} 5. e3 {[%emt 0:03:19]} d5 {[%emt 0:00:31]} 6. b3 {[%emt 0:00:41]} Bd6 {[%emt 0:03:20]} 7. Bb2 {[%emt 0:01:08]} O-O {[%emt 0:00:19]} 8. Bd3 {[%emt 0:02:13]} c5 {[%emt 0:05:47]} 9. O-O {[%emt 0:04:26]} cxd4 {[%emt 0:01:12]} 10. exd4 {[%emt 0:01:37]} Nc6 {[%emt 0:02:49]} 11. Nbd2 {[%emt 0:12:39]} Rc8 {[%emt 0:01:42]} 12. Re1 {[%emt 0:06:22]} Na5 {[%emt 0:07:08]} 13. Ne5 {[%emt 0:18:17]} dxc4 {[%emt 0:01:50]} 14. Ndxc4 {[%emt 0:09:50]} Nxc4 {[%emt 0:02:17]} 15. bxc4 {[%emt 0:01:13]} Nd7 $14 {[%emt 0:27:35]} 16. Re3 {[%emt 0:05:41]} h6 {[%emt 0:04:50]} 17. Rg3 {[%emt 0:09:36]} f5 {[%emt 0:30:24]} 18. c5 {[%emt 0:16:43]} Bxe5 {[%emt 0:01:10]} 19. Bxa6 {[%emt 0:00:29]} Bxg3 {[%emt 0:00:31]} 20. hxg3 {[%emt 0:00:17]} Rc7 {[%emt 0:03:09]} 21. Qb3 {[%emt 0:01:22]} Re8 {[%emt 0:01:51]} 22. Re1 {[%emt 0:02:40]} Nf8 {[%emt 0:00:56]} 23. Bc4 {[%emt 0:01:43]} bxc5 {[%emt 0:01:15]} 24. d5 {[%emt 0:00:46]} exd5 {[%emt 0:00:45]} 25. Bxd5+ {[%emt 0:00:02]} Kh8 {[%emt 0:00:17]} 26. Rd1 {[%emt 0:00:51]} Qe7 {[%emt 0:00:31]} 27. Qf3 {[%emt 0:00:36]} Qe2 {[%emt 0:01:00]} 28. Qb3 {[%emt 0:00:41]} c4 {[%emt 0:00:18]} 29. Qa4 {[%emt 0:00:28]} c3 {[%emt 0:00:44]} 30. Bc1 {[%emt 0:00:39]} Nd7 {[%emt 0:01:10]} 31. Bf3 {[%emt 0:00:33]} Qe7 {[%emt 0:00:23]} 32. Qa5 {[%emt 0:00:30]} Ne5 {[%emt 0:00:31]} 33. Bd5 {[%emt 0:00:00]} 0-1

[Event "LTU-chT 2019"]
[Site "Lithuania"]
[Date "2019.03.30"]
[Round "3.14"]
[White "Bieliauskas, Marius"]
[Black "Jankunas, Tomas"]
[Result "1/2-1/2"]
[ECO "E69"]
[WhiteElo "2183"]
[BlackElo "2098"]
[Annotator "NA"]
[PlyCount "163"]
[EventDate "2019.01.26"]
[EventType "team-tourn"]
[EventCountry "LTU"]
[SourceTitle "playchess.com"]
[Source "ChessBase"]
[SourceQuality "1"]
[TimeControl "40/5400+30:1800+30"]

1. d4 {[%emt 0:00:11]} Nf6 {[%emt 0:00:00]} 2. c4 {[%emt 0:00:21]} g6 {[%emt 0:00:00]} 3. g3 {[%emt 0:01:03]} Bg7 {[%emt 0:01:00]} 4. Bg2 {[%emt 0:00:06]} O-O {[%emt 0:01:55]} 5. Nc3 {[%emt 0:00:38]} d6 {[%emt 0:01:07]} 6. Nf3 {[%emt 0:00:50]} Nbd7 {[%emt 0:02:58]} 7. O-O {[%emt 0:00:13]} c6 {[%emt 0:00:28]} 8. e4 {[%emt 0:02:47]} e5 {[%emt 0:00:21]} 9. h3 {[%emt 0:01:50]} Qb6 {[%emt 0:08:00]} 10. Re1 {[%emt 0:11:45]} exd4 {[%emt 0:02:25]} 11. Nxd4 {[%emt 0:00:53]} Re8 {[%emt 0:00:11]} 12. Nb3 {[%emt 0:05:34]} Ne5 {[%emt 0:24:06]} 13. Be3 {[%emt 0:14:03]} Qd8 {[%emt 0:08:43]} 14. c5 {[%emt 0:20:19]} dxc5 {[%emt 0:04:01]} 15. Nxc5 {[%emt 0:02:39]} Nc4 {[%emt 0:04:29]} 16. Bc1 {[%emt 0:03:50]} Nd7 {[%emt 0:10:57]} 17. Nxd7 {[%emt 0:02:42]} Qxd7 {[%emt 0:03:08]} 18. Qc2 $11 {[%emt 0:03:56]} Qe7 {[%emt 0:02:40]} 19. Qe2 {[%emt 0:15:45]} Be6 {[%emt 0:03:04]} 20. f4 {[%emt 0:02:20]} Rad8 {[%emt 0:01:46]} 21. Kh2 {[%emt 0:01:06]} Qb4 {[%emt 0:08:02]} 22. e5 {[%emt 0:05:33]} f6 {[%emt 0:03:27]} 23. a3 {[%emt 0:00:01]} Qb6 {[%emt 0:01:43]} 24. Ne4 {[%emt 0:01:53]} fxe5 {[%emt 0:01:23]} 25. f5 {[%emt 0:00:51]} gxf5 {[%emt 0:03:05]} 26. b3 {[%emt 0:00:48]} Nd6 {[%emt 0:01:51]} 27. Ng5 {[%emt 0:00:19]} Bd5 {[%emt 0:00:21]} 28. Be3 {[%emt 0:00:18]} Qxb3 {[%emt 0:00:31]} 29. Rab1 {[%emt 0:00:31]} Qc4 {[%emt 0:00:32]} 30. Qh5 {[%emt 0:00:28]} h6 {[%emt 0:00:17]} 31. Bxd5+ {[%emt 0:00:44]} cxd5 {[%emt 0:01:04]} 32. Rbc1 {[%emt 0:00:40]} Qb5 {[%emt 0:00:53]} 33. Rc5 {[%emt 0:00:18]} Qd7 {[%emt 0:01:10]} 34. Nf3 {[%emt 0:00:37]} Ne4 {[%emt 0:00:29]} 35. Rc2 {[%emt 0:01:01]} Qf7 {[%emt 0:00:21]} 36. Qxf7+ {[%emt 0:00:26]} Kxf7 {[%emt 0:00:08]} 37. Bxa7 {[%emt 0:00:30]} Rc8 {[%emt 0:00:28]} 38. Rb2 {[%emt 0:00:03]} Re7 {[%emt 0:00:16]} 39. Nh4 {[%emt 0:00:14]} Nd6 {[%emt 0:00:48]} 40. Rf1 {[%emt 0:00:24]} Ke6 {[%emt 0:00:33]} 41. Rb6 {[%emt 0:30:35]} Rc6 {[%emt 0:31:00]} 42. Rxc6 {[%emt 0:00:20]} bxc6 {[%emt 0:00:05]} 43. Bc5 {[%emt 0:00:01]} Rf7 {[%emt 0:01:03]} 44. Bxd6 {[%emt 0:00:47]} Kxd6 {[%emt 0:00:11]} 45. Nxf5+ {[%emt 0:00:18]} Kd7 {[%emt 0:00:16]} 46. g4 {[%emt 0:00:08]} e4 {[%emt 0:00:20]} 47. h4 {[%emt 0:00:00]} Be5+ 48. Kg2 Rf6 {[%emt 0:01:25]} 49. Rb1 {[%emt 0:00:49]} Rg6 {[%emt 0:00:43]} 50. Kh3 {[%emt 0:00:33]} d4 {[%emt 0:00:29]} 51. Rb7+ {[%emt 0:00:09]} Ke6 {[%emt 0:00:12]} 52. Rb6 {[%emt 0:00:47]} e3 {[%emt 0:00:00]} 53. Rxc6+ {[%emt 0:00:00]} Kd7 {[%emt 0:00:00]} 54. Rc5 {[%emt 0:00:00]} Re6 {[%emt 0:00:00]} 55. Rd5+ {[%emt 0:00:00]} Kc6 {[%emt 0:00:00]} 56. Rxd4 {[%emt 0:00:00]} Bxd4 {[%emt 0:00:00]} 57. Nxd4+ {[%emt 0:00:00]} Kd6 {[%emt 0:00:00]} 58. Ne2 {[%emt 0:00:00]} Ke5 {[%emt 0:00:00]} 59. Kg3 {[%emt 0:00:00]} Ke4 {[%emt 0:00:00]} 60. g5 {[%emt 0:00:00]} hxg5 {[%emt 0:00:00]} 61. hxg5 {[%emt 0:00:00]} Ra6 {[%emt 0:00:00]} 62. Kg4 {[%emt 0:00:00]} Ke5 {[%emt 0:00:00]} 63. g6 {[%emt 0:00:00]} Rxg6+ {[%emt 0:00:29]} 64. Kf3 {[%emt 0:00:00]} Ra6 {[%emt 0:00:05]} 65. Kxe3 {[%emt 0:00:00]} Rxa3+ {[%emt 0:00:03]} 66. Kd2 {[%emt 0:00:00]} Rf3 {[%emt 0:01:03]} 67. Nc3 {[%emt 0:00:00]} Kd4 {[%emt 0:00:44]} 68. Ne2+ {[%emt 0:00:00]} Kc4 {[%emt 0:00:13]} 69. Nc1 {[%emt 0:00:00]} Rh3 {[%emt 0:02:38]} 70. Ne2 {[%emt 0:00:00]} Rb3 {[%emt 0:01:26]} 71. Nc1 {[%emt 0:00:00]} Rc3 {[%emt 0:01:51]} 72. Ne2 {[%emt 0:00:00]} Rd3+ {[%emt 0:00:16]} 73. Ke1 {[%emt 0:00:00]} Re3 {[%emt 0:00:06]} 74. Kd2 {[%emt 0:00:00]} Ra3 {[%emt 0:01:00]} 75. Nc1 {[%emt 0:00:00]} Rh3 {[%emt 0:00:48]} 76. Ne2 {[%emt 0:00:00]} Kb3 {[%emt 0:00:10]} 77. Nc1+ {[%emt 0:00:00]} Kb2 {[%emt 0:00:30]} 78. Ne2 {[%emt 0:00:00]} Rf3 {[%emt 0:00:36]} 79. Nd4 {[%emt 0:00:00]} Rh3 {[%emt 0:00:44]} 80. Ne2 {[%emt 0:00:00]} Rh2 {[%emt 0:00:51]} 81. Kd3 {[%emt 0:00:00]} Rxe2 {[%emt 0:00:11]} 82. Kxe2 {[%emt 0:00:00]} 1/2-1/2

[Event "LTU-chT 2019"]
[Site "Lithuania"]
[Date "2019.03.30"]
[Round "3.15"]
[White "Simanaitis, Vytautas"]
[Black "Stremavicius, Pijus"]
[Result "1-0"]
[ECO "B08"]
[WhiteElo "2019"]
[BlackElo "2082"]
[Annotator "NA"]
[PlyCount "87"]
[EventDate "2019.01.26"]
[EventType "team-tourn"]
[EventCountry "LTU"]
[SourceTitle "playchess.com"]
[Source "ChessBase"]
[SourceQuality "1"]
[TimeControl "40/5400+30:1800+30"]

1. e4 {[%emt 0:00:00]} d6 {[%emt 0:00:00]} 2. d4 {[%emt 0:00:00]} Nf6 {[%emt 0:00:00]} 3. Nc3 {[%emt 0:00:22]} g6 {[%emt 0:00:00]} 4. Nf3 {[%emt 0:01:00]} Bg7 {[%emt 0:01:01]} 5. Bg5 {[%emt 0:01:15]} h6 {[%emt 0:00:15]} 6. Be3 {[%emt 0:01:15]} Ng4 {[%emt 0:03:03] B08: Pirc Defence: Classical System} 7. Bf4 {[%emt 0:04:11]} g5 {[%emt 0:00:23]} (7... Nc6 8. h3 e5 9. dxe5 Ngxe5 10. Nxe5 dxe5 11. Qxd8+ Nxd8 12. Be3 c6 13. O-O-O Be6 14. f3 {0-1 (66) Elistratov,S (2400)-Demidov,M (2514) Moscow 2018}) 8. Bg3 {[%emt 0:08:41]} c6 {[%emt 0:03:14]} 9. Qd2 {[%emt 0:10:59]} b5 {[%emt 0:02:26]} 10. h4 $146 {[%emt 0:05:53]} ({Predecessor:} 10. Bd3 a6 11. O-O-O Qa5 12. Kb1 b4 13. Ne2 Be6 14. c4 bxc3 15. Nxc3 Nd7 {1-0 (34) Hoffman,M-Prokop,J Czechia 1996}) 10... b4 {[%emt 0:03:53]} 11. Ne2 {[%emt 0:09:39]} Nf6 {[%emt 0:10:07]} 12. hxg5 {[%emt 0:09:51]} Nxe4 {[%emt 0:00:18]} 13. Qe3 {[%emt 0:01:29]} ({Reject} 13. Qxb4 $6 hxg5 14. Rxh8+ Bxh8 $11) 13... Nxg5 {[%emt 0:01:38]} 14. Nxg5 {[%emt 0:00:36]} hxg5 {[%emt 0:00:07]} 15. Rxh8+ {[%emt 0:00:38]} Bxh8 {[%emt 0:00:01]} 16. Qxg5 {[%emt 0:00:26]} Be6 {[%emt 0:00:12]} 17. Nf4 {[%emt 0:15:43]} Bf6 {[%emt 0:08:23]} (17... Bxd4 $142 18. Nxe6 fxe6) 18. Qg8+ {[%emt 0:01:51]} Kd7 {[%emt 0:00:06]} 19. Qxd8+ {[%emt 0:01:27]} Kxd8 {[%emt 0:00:03]} 20. Nxe6+ {[%emt 0:00:12]} fxe6 {[%emt 0:00:02]} 21. O-O-O {[%emt 0:00:34]} Nd7 $11 {[%emt 0:00:56]} 22. Bc4 {[%emt 0:09:09]} d5 {[%emt 0:00:47]} 23. Ba6 {[%emt 0:00:42]} Nb6 {[%emt 0:08:02]} 24. Bb7 {[%emt 0:01:17]} Kd7 {[%emt 0:00:05]} 25. Bxa8 {[%emt 0:00:05]} Nxa8 {[%emt 0:00:02]} 26. Bb8 {[%emt 0:03:13]} a6 {[%emt 0:00:44]} 27. f4 {[%emt 0:04:00]} Nb6 {[%emt 0:00:16]} 28. g4 {[%emt 0:00:53]} Nc4 {[%emt 0:00:05]} 29. g5 {[%emt 0:00:41]} Bg7 {[%emt 0:00:10]} 30. Be5 {[%emt 0:00:21]} Bxe5 {[%emt 0:00:11]} 31. dxe5 {[%emt 0:02:24]} Ke8 {[%emt 0:01:53]} 32. Rh1 {[%emt 0:02:35]} Ne3 {[%emt 0:00:04]} 33. Rh8+ {[%emt 0:01:19]} Kf7 {[%emt 0:00:08]} 34. Rc8 {[%emt 0:00:15]} Ng2 {[%emt 0:00:55]} 35. Rxc6 {[%emt 0:00:24]} Nxf4 {[%emt 0:00:09]} 36. Rxa6 {[%emt 0:00:21]} Ng6 {[%emt 0:00:06]} 37. Rb6 {[%emt 0:01:42]} Nxe5 {[%emt 0:00:02]} 38. Rxb4 {[%emt 0:00:09]} Kg6 {[%emt 0:00:11]} 39. a4 {[%emt 0:00:15]} Kxg5 {[%emt 0:00:08]} 40. a5 {[%emt 0:00:47]} Nc6 {[%emt 0:00:05]} 41. Rb5 {[%emt 0:30:40]} e5 {[%emt 0:30:50]} 42. Rxd5 {[%emt 0:00:30]} Kf4 {[%emt 0:00:04]} 43. Rc5 {[%emt 0:00:49]} Nb4 {[%emt 0:00:05]} 44. Rc4+ 1-0